fUST/lending_fUST_20250605
["ID","MTS","AMOUNT","RATE_DAILY","PERIOD"]
[364490114,1749120638812,-430.0,0.00018904,2]
[364490116,1749120638827,-419.68377584,0.00018904,2]
[364490118,1749120638837,-153.099473,0.00018904,2]
[364490120,1749120638846,-153.099473,0.00018904,2]
[364490122,1749120638855,-440.0,0.00018904,2]
[364490124,1749120638865,-151.0,0.00018904,2]
[364490126,1749120638874,-440.0,0.00018904,2]
[364490128,1749120638884,-440.0,0.00018904,2]
[364490131,1749120638893,-440.0,0.00018904,2]
[364490133,1749120638904,-151.0,0.00018904,2]
[364490136,1749120638913,-565.4213844,0.00018904,2]
[364490139,1749120638923,-151.0,0.00018904,2]
[364490142,1749120638932,-151.0,0.00018904,2]
[364490145,1749120638942,-410.0,0.00018904,2]
[364490148,1749120638952,-440.0,0.00018904,2]
[364490150,1749120638961,-358.1520334,0.00018904,2]
[364490153,1749120638980,-410.0,0.00018904,2]
[364490155,1749120638992,-440.0,0.00018904,2]
[364490157,1749120639001,-440.0,0.00018904,2]
[364490159,1749120639012,-440.0,0.00018904,2]
[364490161,1749120639022,-355.25588736,0.00018904,2]
[364490163,1749120639031,-440.0,0.00018904,2]
[364490165,1749120639041,-440.0,0.00018904,2]
[364490167,1749120639051,-151.0,0.00018904,2]
[364490169,1749120639060,-440.0,0.00018904,2]
[364490171,1749120639069,-440.0,0.00018904,2]
[364490173,1749120639079,-400.0,0.00018904,2]
[364490175,1749120639088,-440.0,0.00018904,2]
[364490177,1749120639097,-440.0,0.00018904,2]
[364490179,1749120639107,-2371.35,0.00018904,2]
[364490181,1749120639116,-151.0,0.00018904,2]
[364490183,1749120639125,-440.0,0.00018904,2]
[364490185,1749120639135,-440.0,0.00018904,2]
[364490187,1749120639145,-408.13232613,0.00018904,2]
[364490189,1749120639157,-151.0,0.00018904,2]
[364490191,1749120639174,-440.0,0.00018904,2]
[364490193,1749120639183,-440.0,0.00018904,2]
[364490195,1749120639193,-515.48,0.00018904,2]
[364490197,1749120639203,-440.0,0.00018904,2]
[364490199,1749120639213,-440.0,0.00018904,2]
[364490201,1749120639224,-440.0,0.00018904,2]
[364490203,1749120639233,-440.0,0.00018904,2]
[364490205,1749120639243,-440.0,0.00018904,2]
[364490207,1749120639253,-440.0,0.00018904,2]
[364490209,1749120639262,-440.0,0.00018904,2]
[364490211,1749120639272,-449.69,0.00018904,2]
[364490213,1749120639282,-440.0,0.00018904,2]
[364490215,1749120639293,-440.0,0.00018904,2]
[364490217,1749120639305,-2621.04,0.00018904,2]
[364490219,1749120639316,-440.0,0.00018904,2]
[364490221,1749120639326,-440.0,0.00018904,2]
[364490223,1749120639336,-563.4,0.00018904,2]
[364490233,1749120639463,-1603.39,0.00018904,2]
[364490234,1749120639486,-440.0,0.00018904,2]
[364490235,1749120639497,-1735.19,0.00018904,2]
[364490236,1749120639507,-440.0,0.00018904,2]
[364490237,1749120639517,-609.58,0.00018904,2]
[364490238,1749120639527,-1074.21,0.00018904,2]
[364490239,1749120639537,-440.0,0.00018904,2]
[364490240,1749120639546,-440.0,0.00018904,2]
[364490241,1749120639556,-151.0,0.00018904,2]
[364490242,1749120639570,-583.66,0.00018904,2]
[364490243,1749120639580,-440.0,0.00018904,2]
[364490244,1749120639590,-1078.73,0.00018904,2]
[364490245,1749120639600,-440.0,0.00018904,2]
[364490246,1749120639610,-440.0,0.00018904,2]
[364490247,1749120639620,-440.0,0.00018904,2]
[364490248,1749120639630,-440.0,0.00018904,2]
[364490249,1749120639639,-440.0,0.00018904,2]
[364490250,1749120639648,-337.71069959,0.00018904,2]
[364490251,1749120639657,-440.0,0.00018904,2]
[364490253,1749120639666,-151.0,0.00018904,2]
[364490254,1749120639676,-151.0,0.00018904,2]
[364490256,1749120639685,-377.67945617,0.00018904,2]
[364490258,1749120639694,-948.08,0.00018904,2]
[364490260,1749120639704,-440.0,0.00018904,2]
[364490262,1749120639713,-440.0,0.00018904,2]
[364490264,1749120639722,-440.0,0.00018904,2]
[364490266,1749120639732,-807.25,0.00018904,2]
[364490268,1749120639742,-440.0,0.00018904,2]
[364490270,1749120639751,-440.0,0.00018904,2]
[364490272,1749120639760,-454.64,0.00018904,2]
[364490273,1749120639770,-440.0,0.00018904,2]
[364490276,1749120639780,-440.0,0.00018904,2]
[364490278,1749120639790,-151.0,0.00018904,2]
[364490280,1749120639799,-1149.08,0.00018904,2]
[364490282,1749120639809,-440.0,0.00018904,2]
[364490284,1749120639818,-440.0,0.00018904,2]
[364490286,1749120639827,-440.0,0.00018904,2]
[364490287,1749120639836,-631.36,0.00018904,2]
[364490289,1749120639846,-440.0,0.00018904,2]
[364490291,1749120639855,-440.0,0.00018904,2]
[364490293,1749120639864,-151.0,0.00018904,2]
[364490295,1749120639873,-288.476999,0.00018904,2]
[364490297,1749120639883,-440.0,0.00018904,2]
[364490299,1749120639893,-1087.02,0.00018904,2]
[364490302,1749120639902,-2091.84,0.00018904,2]
[364490303,1749120639912,-440.0,0.00018904,2]
[364490305,1749120639922,-1507.63,0.00018904,2]
[364490308,1749120639932,-440.0,0.00018904,2]
[364490309,1749120639942,-440.0,0.00018904,2]
[364490311,1749120639951,-440.0,0.00018904,2]
[364490313,1749120639961,-440.0,0.00018904,2]
[364490315,1749120639971,-440.0,0.00018904,2]
[364490317,1749120639980,-500.0,0.00019063,2]
[364490319,1749120639990,-500.0,0.00019063,2]
[364490321,1749120640000,-500.0,0.00019063,2]
[364490323,1749120640011,-300.4304758,0.00019082,2]
[364490325,1749120640020,-500.0,0.00019082,2]
[364490327,1749120640031,-501.11294187,0.00019082,2]
[364490329,1749120640041,-500.0,0.00019085,2]
[364490331,1749120640051,-151.0,0.00019085,2]
[364490333,1749120640060,-500.0,0.0001909,2]
[364490335,1749120640070,-1841.71774051,0.00019107,2]
[364490337,1749120640080,-615.078262,0.00019117,2]
[364490339,1749120640090,-615.078262,0.00019117,2]
[364490341,1749120640099,-151.0,0.00019117,2]
[364490343,1749120640108,-500.0,0.00019117,2]
[364490345,1749120640118,-500.0250061,0.00019117,2]
[364490347,1749120640128,-500.0,0.00019173,2]
[364490349,1749120640138,-500.0,0.00019173,2]
[364490352,1749120640148,-500.0,0.00019173,2]
[364490355,1749120640158,-500.0,0.00019173,2]
[364490358,1749120640167,-500.0,0.00019173,2]
[364490360,1749120640176,-500.0,0.00019173,2]
[364490363,1749120640186,-165.62025028,0.00019173,2]
[364490366,1749120640195,-625.62677359,0.00019173,2]
[364490369,1749120640205,-501.96633342,0.00019173,2]
[364490372,1749120640215,-506.45617297,0.00019173,2]
[364490375,1749120640224,-500.0,0.00019173,2]
[364490378,1749120640233,-500.0,0.00019173,2]
[364490381,1749120640243,-500.0,0.00019173,2]
[364490384,1749120640254,-151.0,0.00019176,2]
[364490386,1749120640263,-375.19752,0.00019176,2]
[364490388,1749120640272,-375.19752,0.00019176,2]
[364490390,1749120640283,-151.0,0.00019176,2]
[364490392,1749120640293,-151.0,0.00019176,2]
[364490394,1749120640305,-151.0,0.00019176,2]
[364490396,1749120640315,-151.0,0.00019176,2]
[364490398,1749120640324,-626.79,0.00019176,2]
[364490400,1749120640334,-2619.24,0.00019176,2]
[364490402,1749120640345,-151.0,0.00019176,2]
[364490404,1749120640354,-907.14,0.00019176,2]
[364490407,1749120640364,-320.88184397,0.00019176,2]
[364490410,1749120640373,-2857.8,0.00019177,2]
[364490412,1749120640383,-2857.8,0.00019177,2]
[364490414,1749120640393,-151.0,0.00019177,2]
[364490417,1749120640403,-151.0,0.00019177,2]
[364490419,1749120640412,-153.099473,0.00019177,2]
[364490420,1749120640421,-153.099473,0.00019177,2]
[364490422,1749120640431,-151.0,0.00019177,2]
[364490424,1749120640440,-151.0,0.00019177,2]
[364490426,1749120640450,-626.79,0.00019177,2]
[364490428,1749120640460,-626.79,0.00019177,2]
[364490430,1749120640471,-626.79,0.00019177,2]
[364490432,1749120640480,-626.79,0.00019177,2]
[364490434,1749120640490,-626.79,0.00019177,2]
[364490437,1749120640500,-626.79,0.00019177,2]
[364490439,1749120640510,-626.79,0.00019177,2]
[364490441,1749120640519,-626.79210826,0.00019177,2]
[364490443,1749120640528,-500.0,0.00019177,2]
[364490445,1749120640538,-500.0,0.00019177,2]
[364490447,1749120640548,-500.0,0.00019177,2]
[364490449,1749120640558,-500.0,0.00019177,2]
[364490451,1749120640569,-500.0,0.00019177,2]
[364490453,1749120640579,-500.0,0.00019177,2]
[364490455,1749120640590,-500.0,0.00019177,2]
[364490457,1749120640600,-500.0,0.00019177,2]
[364490459,1749120640609,-500.0,0.00019177,2]
[364490462,1749120640620,-500.0,0.00019177,2]
[364490464,1749120640630,-500.0,0.00019177,2]
[364490465,1749120640639,-500.0,0.00019177,2]
[364490468,1749120640649,-500.0,0.00019177,2]
[364490469,1749120640658,-500.0,0.00019177,2]
[364490471,1749120640668,-500.0,0.00019177,2]
[364490473,1749120640677,-500.0,0.00019177,2]
[364490475,1749120640687,-500.0,0.00019177,2]
[364490477,1749120640697,-500.0,0.00019177,2]
[364490480,1749120640707,-500.0,0.00019177,2]
[364490481,1749120640716,-500.0,0.00019177,2]
[364490483,1749120640726,-500.0,0.00019177,2]
[364490485,1749120640736,-500.0,0.00019177,2]
[364490488,1749120640746,-500.0,0.00019177,2]
[364490489,1749120640755,-500.0,0.00019177,2]
[364490492,1749120640765,-240.93555644,0.00019177,2]
[364490493,1749120640774,-500.0,0.00019177,2]
[364490495,1749120640784,-500.0,0.00019177,2]
[364490497,1749120640793,-500.0,0.00019177,2]
[364490499,1749120640802,-500.0,0.00019177,2]
[364490501,1749120640812,-378.33402682,0.00019177,2]
[364490503,1749120640821,-500.0,0.00019177,2]
[364490505,1749120640830,-500.0,0.00019177,2]
[364490507,1749120640840,-500.0,0.00019177,2]
[364490509,1749120640849,-500.0,0.00019177,2]
[364490511,1749120640859,-314.83381877,0.00019177,2]
[364490513,1749120640868,-500.0,0.00019177,2]
[364490515,1749120640877,-500.0,0.00019177,2]
[364490517,1749120640887,-500.0,0.00019177,2]
[364490519,1749120640896,-550.0,0.00019177,2]
[364490521,1749120640906,-500.0,0.00019177,2]
[364490523,1749120640915,-500.0,0.00019177,2]
[364490525,1749120640924,-12675.11581177,0.00019178,2]
[364490527,1749120640934,-160.0,0.00019178,2]
[364490529,1749120640943,-212.94059491,0.00019178,2]
[364490531,1749120640952,-440.0,0.00019178,2]
[364490533,1749120640962,-151.0,0.00019178,2]
[364490535,1749120640971,-440.0,0.00019178,2]
[364490537,1749120640980,-440.0,0.00019178,2]
[364490539,1749120640990,-377.60808724,0.00019178,2]
[364490541,1749120641000,-192.12721483,0.00019178,2]
[364490543,1749120641009,-151.0,0.00019178,2]
[364490545,1749120641019,-151.0,0.00019178,2]
[364490547,1749120641028,-151.0,0.00019178,2]
[364490549,1749120641038,-151.0,0.00019178,2]
[364490551,1749120641048,-500.0,0.00019178,2]
[364490553,1749120641058,-500.0,0.00019178,2]
[364490555,1749120641067,-500.0,0.00019178,2]
[364490557,1749120641077,-500.0,0.00019178,2]
[364490559,1749120641087,-500.0,0.00019178,2]
[364490561,1749120641097,-500.0,0.00019178,2]
[364490563,1749120641106,-500.0,0.00019178,2]
[364490565,1749120641116,-500.0,0.00019178,2]
[364490568,1749120641126,-500.0,0.00019178,2]
[364490569,1749120641136,-500.0,0.00019178,2]
[364490572,1749120641146,-500.0,0.00019178,2]
[364490574,1749120641156,-500.0,0.00019178,2]
[364490577,1749120641166,-500.0,0.00019178,2]
[364490579,1749120641175,-500.0,0.00019178,2]
[364490581,1749120641185,-500.0,0.00019178,2]
[364490583,1749120641194,-500.0,0.00019178,2]
[364490584,1749120641204,-500.0,0.00019178,2]
[364490587,1749120641213,-500.0,0.00019178,2]
[364490588,1749120641223,-500.0,0.00019178,2]
[364490591,1749120641233,-500.0,0.00019178,2]
[364490593,1749120641243,-500.0,0.00019178,2]
[364490594,1749120641252,-500.0,0.00019178,2]
[364490596,1749120641261,-500.0,0.00019178,2]
[364490598,1749120641271,-500.0,0.00019178,2]
[364490600,1749120641280,-500.0,0.00019178,2]
[364490603,1749120641290,-500.0,0.00019178,2]
[364490605,1749120641301,-500.0,0.00019178,2]
[364490606,1749120641311,-500.0,0.00019178,2]
[364490608,1749120641321,-500.0,0.00019178,2]
[364490610,1749120641330,-500.0,0.00019178,2]
[364490612,1749120641340,-500.0,0.00019178,2]
[364490614,1749120641351,-500.0,0.00019178,2]
[364490617,1749120641361,-500.0,0.00019178,2]
[364490619,1749120641371,-500.0,0.00019178,2]
[364490621,1749120641382,-500.0,0.00019178,2]
[364490623,1749120641392,-500.0,0.00019178,2]
[364490625,1749120641402,-500.0,0.00019178,2]
[364490627,1749120641412,-500.0,0.00019178,2]
[364490629,1749120641421,-500.0,0.00019178,2]
[364490631,1749120641431,-500.0,0.00019178,2]
[364490633,1749120641441,-500.0,0.00019178,2]
[364490635,1749120641450,-500.0,0.00019178,2]
[364490637,1749120641460,-500.0,0.00019178,2]
[364490639,1749120641471,-500.0,0.00019178,2]
[364490641,1749120641481,-500.0,0.00019178,2]
[364490643,1749120641490,-500.0,0.00019178,2]
[364490645,1749120641499,-500.0,0.00019178,2]
[364490647,1749120641509,-500.0,0.00019178,2]
[364490649,1749120641518,-500.0,0.00019178,2]
[364490651,1749120641530,-500.0,0.00019178,2]
[364490653,1749120641539,-159.14094208,0.00019178,2]
[364490655,1749120641549,-500.0,0.00019178,2]
[364490657,1749120641558,-500.0,0.00019178,2]
[364490659,1749120641567,-500.0,0.00019178,2]
[364490661,1749120641577,-500.0,0.00019178,2]
[364490673,1749120641676,-500.0,0.00019178,2]
[364490675,1749120641687,-500.0,0.00019178,2]
[364490677,1749120641696,-500.0,0.00019178,2]
[364490679,1749120641705,-500.0,0.00019178,2]
[364490681,1749120641714,-500.0,0.00019178,2]
[364490683,1749120641725,-500.0,0.00019178,2]
[364490685,1749120641734,-500.0,0.00019178,2]
[364490687,1749120641743,-500.0,0.00019178,2]
[364490689,1749120641753,-868.6186996,0.00019178,2]
[364490691,1749120641762,-868.6186996,0.00019178,2]
[364490693,1749120641771,-868.6186996,0.00019178,2]
[364490695,1749120641781,-868.6186996,0.00019178,2]
[364490697,1749120641790,-868.6186996,0.00019178,2]
[364490698,1749120641800,-868.6186996,0.00019178,2]
[364490700,1749120641810,-868.6186996,0.00019178,2]
[364490702,1749120641819,-868.6186996,0.00019178,2]
[364490704,1749120641828,-868.6186996,0.00019178,2]
[364490706,1749120641837,-868.6186996,0.00019178,2]
[364490708,1749120641847,-868.6186996,0.00019178,2]
[364490710,1749120641856,-868.6186996,0.00019178,2]
[364490712,1749120641866,-868.6186996,0.00019178,2]
[364490714,1749120641875,-868.6186996,0.00019178,2]
[364490716,1749120641884,-868.6186996,0.00019178,2]
[364490718,1749120641893,-868.6186996,0.00019178,2]
[364490720,1749120641902,-868.6186996,0.00019178,2]
[364490722,1749120641911,-868.6186996,0.00019178,2]
[364490724,1749120641921,-868.6186996,0.00019178,2]
[364490726,1749120641930,-868.6186996,0.00019178,2]
[364490728,1749120641939,-868.6186996,0.00019178,2]
[364490730,1749120641948,-868.6186996,0.00019178,2]
[364490732,1749120641957,-868.6186996,0.00019178,2]
[364490734,1749120641966,-868.6186996,0.00019178,2]
[364490736,1749120641975,-868.6186996,0.00019178,2]
[364490738,1749120641985,-868.6186996,0.00019178,2]
[364490739,1749120641994,-375.19752,0.00019178,2]
[364490741,1749120642004,-200.454904,0.00019178,2]
[364490743,1749120642015,-440.0,0.00019178,2]
[364490746,1749120642025,-375.19752,0.00019178,2]
[364490748,1749120642035,-200.454904,0.00019178,2]
[364490750,1749120642044,-868.6186995,0.00019178,2]
[364490751,1749120642054,-210.732742,0.00019178,2]
[364490753,1749120642063,-440.0,0.00019178,2]
[364490755,1749120642072,-210.732742,0.00019178,2]
[364490757,1749120642082,-151.0,0.00019178,2]
[364490759,1749120642091,-230.165281,0.00019178,2]
[364490760,1749120642101,-192.84,0.00019178,2]
[364490761,1749120642110,-151.0,0.00019178,2]
[364490762,1749120642119,-440.0,0.00019178,2]
[364490763,1749120642129,-440.0,0.00019178,2]
[364490764,1749120642138,-615.078262,0.00019178,2]
[364490765,1749120642149,-615.078262,0.00019178,2]
[364490767,1749120642159,-151.0,0.00019178,2]
[364490769,1749120642168,-151.0,0.00019178,2]
[364490771,1749120642178,-504.72230835,0.00019178,2]
[364490773,1749120642187,-380.0,0.00019178,2]
[364490775,1749120642196,-266.54034557,0.00019178,2]
[364490777,1749120642205,-261.54265223,0.00019178,2]
[364490779,1749120642215,-440.0,0.00019178,2]
[364490781,1749120642225,-440.0,0.00019178,2]
[364490783,1749120642234,-440.0,0.00019178,2]
[364490785,1749120642244,-440.0,0.00019178,2]
[364490787,1749120642253,-430.0,0.00019178,2]
[364490789,1749120642263,-153.099473,0.00019178,2]
[364490791,1749120642272,-153.099473,0.00019178,2]
[364490793,1749120642281,-153.099473,0.00019178,2]
[364490795,1749120642291,-153.099473,0.00019178,2]
[364490797,1749120642303,-297.29,0.00019178,2]
[364490799,1749120642313,-440.0,0.00019178,2]
[364490801,1749120642322,-440.0,0.00019178,2]
[364490803,1749120642332,-380.0,0.00019178,2]
[364490805,1749120642342,-154.466733,0.00019178,2]
[364490807,1749120642351,-151.0,0.00019178,2]
[364490809,1749120642360,-151.0,0.00019178,2]
[364490811,1749120642371,-151.0,0.00019178,2]
[364490813,1749120642382,-440.0,0.00019178,2]
[364490815,1749120642392,-440.0,0.00019178,2]
[364490817,1749120642402,-440.0,0.00019178,2]
[364490819,1749120642413,-440.0,0.00019178,2]
[364490821,1749120642422,-410.0,0.00019178,2]
[364490823,1749120642431,-440.0,0.00019178,2]
[364490825,1749120642441,-412.24,0.00019178,2]
[364490827,1749120642451,-440.0,0.00019178,2]
[364490829,1749120642460,-440.0,0.00019178,2]
[364490831,1749120642470,-440.0,0.00019178,2]
[364490833,1749120642479,-2371.35,0.00019178,2]
[364490835,1749120642489,-151.0,0.00019178,2]
[364490837,1749120642498,-151.0,0.00019178,2]
[364490839,1749120642508,-440.0,0.00019178,2]
[364490841,1749120642517,-440.0,0.00019178,2]
[364490843,1749120642526,-151.0,0.00019178,2]
[364490845,1749120642536,-151.0,0.00019178,2]
[364490847,1749120642545,-440.0,0.00019178,2]
[364490849,1749120642555,-350.0,0.00019178,2]
[364490851,1749120642565,-515.48,0.00019178,2]
[364490853,1749120642575,-440.0,0.00019178,2]
[364490855,1749120642585,-440.0,0.00019178,2]
[364490857,1749120642594,-440.0,0.00019178,2]
[364490859,1749120642603,-440.0,0.00019178,2]
[364490861,1749120642613,-440.0,0.00019178,2]
[364490863,1749120642622,-440.0,0.00019178,2]
[364490865,1749120642631,-440.0,0.00019178,2]
[364490867,1749120642640,-449.69,0.00019178,2]
[364490869,1749120642650,-440.0,0.00019178,2]
[364490871,1749120642659,-440.0,0.00019178,2]
[364490873,1749120642668,-2621.04,0.00019178,2]
[364490875,1749120642677,-440.0,0.00019178,2]
[364490877,1749120642687,-440.0,0.00019178,2]
[364490879,1749120642696,-563.4,0.00019178,2]
[364490881,1749120642706,-1603.39,0.00019178,2]
[364490883,1749120642716,-440.0,0.00019178,2]
[364490885,1749120642726,-1735.19,0.00019178,2]
[364490887,1749120642736,-440.0,0.00019178,2]
[364490889,1749120642746,-609.58,0.00019178,2]
[364490891,1749120642756,-1074.21,0.00019178,2]
[364490893,1749120642766,-440.0,0.00019178,2]
[364490895,1749120642776,-440.0,0.00019178,2]
[364490897,1749120642786,-583.66,0.00019178,2]
[364490899,1749120642795,-151.0,0.00019178,2]
[364490901,1749120642805,-151.0,0.00019178,2]
[364490903,1749120642815,-380.0,0.00019178,2]
[364490905,1749120642824,-1078.73,0.00019178,2]
[364490907,1749120642834,-440.0,0.00019178,2]
[364490909,1749120642843,-440.0,0.00019178,2]
[364490911,1749120642853,-323.82735018,0.00019178,2]
[364490914,1749120642864,-440.0,0.00019178,2]
[364490915,1749120642873,-440.0,0.00019178,2]
[364490918,1749120642883,-440.0,0.00019178,2]
[364490919,1749120642892,-151.0,0.00019178,2]
[364490922,1749120642902,-151.0,0.00019178,2]
[364490924,1749120642912,-151.0,0.00019178,2]
[364490926,1749120642922,-948.08,0.00019178,2]
[364490928,1749120642931,-440.0,0.00019178,2]
[364490930,1749120642940,-440.0,0.00019178,2]
[364490932,1749120642950,-440.0,0.00019178,2]
[364490933,1749120642959,-807.25,0.00019178,2]
[364490935,1749120642969,-440.0,0.00019178,2]
[364490938,1749120642978,-440.0,0.00019178,2]
[364490940,1749120642988,-454.64,0.00019178,2]
[364490941,1749120642997,-440.0,0.00019178,2]
[364490943,1749120643006,-440.0,0.00019178,2]
[364490945,1749120643017,-151.0,0.00019178,2]
[364490947,1749120643027,-151.0,0.00019178,2]
[364490949,1749120643037,-1149.08,0.00019178,2]
[364490952,1749120643046,-440.0,0.00019178,2]
[364490953,1749120643056,-413.10685768,0.00019178,2]
[364490955,1749120643065,-440.0,0.00019178,2]
[364490957,1749120643075,-631.36,0.00019178,2]
[364490959,1749120643084,-440.0,0.00019178,2]
[364490961,1749120643093,-513.05378082,0.00019178,2]
[364490964,1749120643102,-431.66981993,0.00019178,2]
[364490967,1749120643111,-1087.02,0.00019178,2]
[364490969,1749120643121,-2091.84,0.00019178,2]
[364490971,1749120643130,-440.0,0.00019178,2]
[364490973,1749120643139,-1507.63,0.00019178,2]
[364490975,1749120643149,-440.0,0.00019178,2]
[364490977,1749120643158,-440.0,0.00019178,2]
[364490979,1749120643168,-440.0,0.00019178,2]
[364490981,1749120643177,-370.0,0.00019178,2]
[364490983,1749120643186,-440.0,0.00019178,2]
[364490985,1749120643196,-198.241379,0.00019178,2]
[364490987,1749120643205,-423.7637613,0.0001918,2]
[364490989,1749120643215,-160.0,0.0001918,2]
[364490991,1749120643224,-842.5625,0.0001918,2]
[364490993,1749120643233,-229.48950782,0.0001918,2]
[364490995,1749120643243,-160.0,0.0001918,2]
[364490998,1749120643253,-160.0,0.0001918,2]
[364491000,1749120643262,-160.0,0.0001918,2]
[364491002,1749120643272,-160.0,0.0001918,2]
[364491004,1749120643281,-157.76505856,0.0001924,2]
[364491006,1749120643290,-4447.99911634,0.00019248,2]
[364491009,1749120643303,-181.19807031,0.00019289,2]
[364491011,1749120643312,-151.0,0.00019298,2]
[364491015,1749120643322,-151.0,0.00019328,2]
[364491019,1749120643333,-151.0,0.00019328,2]
[364491022,1749120643345,-210.732742,0.00019329,2]
[364491024,1749120643354,-210.732742,0.00019329,2]
[364491026,1749120643363,-615.078262,0.00019329,2]
[364491028,1749120643373,-615.078262,0.00019329,2]
[364491031,1749120643384,-151.0,0.00019329,2]
[364491034,1749120643393,-151.0,0.00019329,2]
[364491036,1749120643402,-151.0,0.00019329,2]
[364491039,1749120643411,-151.0,0.00019329,2]
[364491041,1749120643421,-25559.03518315,0.00019329,2]
[364491044,1749120643430,-1841.71774051,0.00019348,2]
[364491047,1749120643440,-420.0,0.0001943,2]
[364491050,1749120643450,-151.0,0.0001945,2]
[364491053,1749120643459,-375.19752,0.0001945,2]
[364491056,1749120643469,-375.19752,0.0001945,2]
[364491059,1749120643478,-151.0,0.0001945,2]
[364491061,1749120643488,-151.0,0.0001945,2]
[364491064,1749120643497,-2619.24,0.0001945,2]
[364491066,1749120643507,-907.14,0.0001945,2]
[364491068,1749120643516,-225.36481,0.00019451,2]
[364491070,1749120643525,-153.099473,0.00019451,2]
[364491072,1749120643534,-153.099473,0.00019451,2]
[364491074,1749120643544,-232.601867,0.00019452,2]
[364491076,1749120643554,-151.0,0.00019452,2]
[364491078,1749120643563,-440.0,0.00019452,2]
[364491080,1749120643573,-265.500993,0.00019452,2]
[364491091,1749120643668,-440.0,0.00019452,2]
[364491093,1749120643678,-151.0,0.00019452,2]
[364491095,1749120643688,-151.0,0.00019452,2]
[364491097,1749120643697,-200.454904,0.00019452,2]
[364491099,1749120643706,-377.58124026,0.00019452,2]
[364491101,1749120643715,-200.454904,0.00019452,2]
[364491103,1749120643724,-440.0,0.00019452,2]
[364491105,1749120643733,-440.0,0.00019452,2]
[364491107,1749120643743,-440.0,0.00019452,2]
[364491109,1749120643752,-440.0,0.00019452,2]
[364491111,1749120643761,-440.0,0.00019452,2]
[364491113,1749120643770,-440.0,0.00019452,2]
[364491115,1749120643779,-440.0,0.00019452,2]
[364491117,1749120643788,-540.0,0.00019452,2]
[364491119,1749120643797,-440.0,0.00019452,2]
[364491121,1749120643806,-440.0,0.00019452,2]
[364491123,1749120643815,-440.0,0.00019452,2]
[364491125,1749120643824,-211.56649641,0.00019452,2]
[364491127,1749120643834,-440.0,0.00019452,2]
[364491129,1749120643843,-380.0,0.00019452,2]
[364491131,1749120643852,-440.0,0.00019452,2]
[364491133,1749120643861,-440.0,0.00019452,2]
[364491135,1749120643870,-2371.35,0.00019452,2]
[364491137,1749120643879,-151.0,0.00019452,2]
[364491139,1749120643888,-440.0,0.00019452,2]
[364491141,1749120643898,-440.0,0.00019452,2]
[364491143,1749120643906,-390.0,0.00019452,2]
[364491145,1749120643916,-151.0,0.00019452,2]
[364491147,1749120643926,-515.48,0.00019452,2]
[364491149,1749120643935,-440.0,0.00019452,2]
[364491151,1749120643944,-440.0,0.00019452,2]
[364491153,1749120643953,-440.0,0.00019452,2]